bitfinex/quotes_ETHUSD_20250415
["timestamp","ask_amount","ask_price","bid_price","bid_amount"]
[1744739773983,12.06673,1614.3,1614.0,12.39133]
[1744739774179,12.06673,1614.3,1614.0,6.19566]
[1744739774388,5.872,1614.3,1614.0,0.55]
[1744739774687,6.9684,1614.1,1613.8,6.19654]
[1744739774856,6.19513,1614.2,1613.9,6.19616]
[1744739775062,6.19545,1614.1,1613.8,12.39288]
[1744739775258,7.906185,1614.3,1613.9,0.55]
[1744739775471,6.19504,1614.2,1613.9,6.19588]
[1744739775677,14.100835,1614.3,1613.9,6.19588]
[1744739775875,6.19521,1614.2,1613.9,6.19588]
[1744739776203,14.100835,1614.3,1613.9,6.19588]
[1744739776204,12.81704,1614.3,1614.0,6.19547]
[1744739776366,12.81704,1614.3,1614.0,12.39112]
[1744739776693,12.81704,1614.3,1614.0,12.39113]
[1744739776903,6.6224,1614.3,1614.0,0.55]
[1744739777050,5.872,1614.3,1614.1,6.19526]
[1744739777467,5.872,1614.3,1614.0,6.1957]
[1744739777664,5.872,1614.3,1614.1,6.19538]
[1744739778363,5.872,1614.3,1614.1,6.74537]
[1744739778571,13.20472,1614.5,1614.1,6.74527]
[1744739778896,13.20472,1614.5,1614.2,6.1949]
[1744739779192,0.8168,1614.5,1614.2,12.3898]
[1744739779396,0.8168,1614.5,1614.2,12.38981]
[1744739779551,0.8168,1614.5,1614.3,6.19452]
[1744739779753,13.1761,1614.7,1614.3,6.19452]
[1744739779953,13.1761,1614.7,1614.3,12.38904]
[1744739780154,0.7897,1614.7,1614.5,6.1936]
[1744739780380,6.6247,1614.7,1614.5,6.1936]
[1744739780589,6.6247,1614.7,1614.5,12.3873]
[1744739780892,6.6247,1614.7,1614.5,12.38733]
[1744739781056,5.835,1614.7,1614.5,6.1936]
[1744739781512,6.19358,1614.6,1614.3,6.7444]
[1744739781917,12.38727,1614.6,1614.3,6.7444]
[1744739782278,12.02828,1614.7,1614.4,6.19414]
[1744739782480,12.02828,1614.7,1614.4,12.38826]
[1744739782679,12.02828,1614.7,1614.4,6.19412]
[1744739782975,5.835,1614.7,1614.5,6.19376]
[1744739783522,5.835,1614.7,1614.5,6.19374]
[1744739783732,5.835,1614.7,1614.6,6.19348]
[1744739784337,5.835,1614.7,1614.5,6.19374]
[1744739784641,5.835,1614.7,1614.6,6.19348]
[1744739785137,0.7881,1615.0,1614.6,11.78958642]
[1744739785306,5.835,1615.0,1614.9,6.19233]
[1744739785512,5.835,1615.0,1614.9,6.74233]
[1744739787141,59.0730151,1615.3,1614.8,6.19268]
[1744739787326,6.19135,1615.2,1614.8,0.55]
[1744739787501,12.3364196,1615.2,1614.8,12.93523]
[1744739787698,12.3364196,1615.2,1614.9,6.19232]
[1744739788039,6.1449596,1615.2,1614.9,6.19221]
[1744739788610,58.2922151,1615.3,1615.1,6.1912]
[1744739789648,58.2922151,1615.3,1615.1,12.38265]
[1744739789854,58.2922151,1615.3,1615.1,12.38264]
[1744739790034,58.2922151,1615.3,1615.1,6.1912]
[1744739790361,5.834,1615.3,1615.2,6.19118]
[1744739790566,0.05,1615.4,1615.3,6.1908]
[1744739790768,0.18864315,1615.4,1615.3,6.1908]
[1744739791475,0.18864315,1615.4,1615.3,6.7408]
[1744739792239,3.15e-06,1615.4,1615.3,16.48386509]
[1744739792438,1.1,1615.7,1615.6,6.18965]
[1744739792765,1.1,1615.7,1615.6,7.6045381]
[1744739792974,1.23951048,1615.7,1615.6,10.54265]
[1744739793176,1.23951048,1615.7,1615.6,10.6045361]
[1744739793358,1.23951048,1615.7,1615.6,10.54265]
[1744739793670,1.23951048,1615.7,1615.6,13.43107951]
[1744739794867,1.23951048,1615.7,1615.6,12.88107951]
[1744739795254,1.17755048,1615.7,1615.6,13.43107951]
[1744739795453,4.8e-07,1615.7,1615.6,13.88561933]
[1744739795645,0.55,1615.8,1615.7,7.56726]
[1744739795842,0.55,1615.8,1615.7,16.12231302]
[1744739796677,0.55,1615.8,1615.7,10.16034793]
[1744739796831,0.55,1615.8,1615.7,7.56726]
[1744739798447,0.55,1615.8,1615.7,7.62914118]
[1744739798874,0.55,1615.8,1615.7,7.56726]
[1744739800187,0.55,1615.8,1615.7,6.18926]
[1744739800390,0.55,1615.8,1615.7,6.73926]
[1744739800568,0.55,1615.8,1615.7,6.18926]
[1744739800971,0.55,1615.8,1615.7,6.73926]
[1744739801404,0.55,1615.8,1615.7,8.651078]
[1744739803102,0.55,1615.8,1615.7,8.71296554]
[1744739803404,0.55,1615.8,1615.7,8.651078]
[1744739804172,0.55,1615.8,1615.3,2.88659051]
[1744739804173,0.8136,1615.5,1614.4,0.7602]
[1744739804400,6.19095,1615.3,1614.9,6.19219]
[1744739804573,7.392945,1615.3,1614.9,6.19219]
[1744739805003,7.392945,1615.3,1614.9,12.38439]
[1744739805197,1.201995,1615.3,1614.8,0.7919]
[1744739805403,6.19132,1615.2,1614.8,6.98458]
[1744739805603,6.1919,1615.1,1614.6,7.02382]
[1744739805773,0.7583,1615.3,1614.7,6.19297]
[1744739805977,0.7583,1615.3,1614.8,6.25426101]
[1744739806298,0.7583,1615.3,1614.8,0.06192101]
[1744739806496,0.7583,1615.3,1614.9,6.74197]
[1744739806809,6.94921,1615.3,1614.9,6.74197]
[1744739807312,6.19157,1615.1,1614.9,0.55]
[1744739807494,12.38278,1615.2,1614.9,0.55]
[1744739807700,6.19135,1615.2,1614.9,0.55]
[1744739808210,12.38272,1615.2,1614.9,0.55]
[1744739808723,6.19173,1615.1,1614.7,6.19306]
[1744739808923,6.19296,1614.8,1614.4,0.8289]
[1744739809233,12.38573,1614.8,1614.4,6.19397]
[1744739809422,12.38575,1614.8,1614.4,6.19397]
[1744739809821,12.85005,1615.0,1614.5,0.55]
[1744739810043,19.04224,1615.0,1614.6,6.19328]
[1744739810619,6.19249,1614.9,1614.6,6.19328]
[1744739810839,12.38503,1614.9,1614.6,6.19328]
[1744739811131,6.19249,1614.9,1614.6,6.19328]
[1744739811641,12.38499,1614.9,1614.6,6.19328]
[1744739811800,6.19249,1614.9,1614.5,7.418165]
[1744739812545,6.19249,1614.9,1614.6,6.19347]
[1744739813036,12.85009,1615.0,1614.6,6.19347]
[1744739813336,19.04228,1615.0,1614.6,6.19347]
[1744739813496,6.19248,1614.9,1614.6,6.19347]
[1744739813699,6.19248,1614.9,1614.6,12.38683]
[1744739813918,6.6581,1615.0,1614.8,6.19258]
[1744739814153,6.19238,1614.9,1614.6,6.19323]
[1744739814557,12.38488,1614.9,1614.6,6.19323]
[1744739814756,6.19247,1614.9,1614.5,12.9375]
[1744739815055,6.8141,1615.0,1614.7,0.55]
[1744739815222,13.00606,1615.0,1614.7,6.7428]
[1744739815424,19.1982,1615.0,1614.7,6.7428]
[1744739815753,6.19235,1614.9,1614.7,0.55]
[1744739816155,0.8281,1615.0,1614.7,0.55]
[1744739816454,19.1984,1615.0,1614.7,0.55]
[1744739816663,6.19234,1614.9,1614.7,0.55]
[1744739817571,8.73394,1615.0,1614.6,0.55]
[1744739817855,6.19321,1614.7,1614.4,13.15763]
[1744739818159,12.38578,1614.8,1614.5,6.19382]
[1744739818361,6.19366,1614.6,1614.3,6.19451]
[1744739818549,6.19366,1614.6,1614.3,12.38903]
[1744739818745,12.17966,1614.6,1614.3,6.19451]
[1744739818980,12.17966,1614.6,1614.0,0.8216]
[1744739818981,19.39107082,1614.6,1614.0,0.8216]
[1744739819295,12.1796,1614.6,1614.3,6.19449]
[1744739819690,12.1796,1614.6,1614.3,12.389]
[1744739819860,12.1796,1614.6,1614.3,6.19449]
[1744739820199,5.986,1614.6,1614.4,6.19424]
[1744739820700,18.37325,1614.6,1614.2,12.93978]
[1744739820888,18.37325,1614.6,1614.3,6.1946]
[1744739821201,5.986,1614.6,1614.4,6.19405]
[1744739821385,0.8224,1614.7,1614.5,6.19386]
[1744739821588,6.8084,1614.7,1614.5,6.19371]
[1744739821778,6.8084,1614.7,1614.5,12.38746]
[1744739822462,6.8084,1614.7,1614.5,6.19371]
[1744739822665,0.8224,1614.7,1614.6,6.19348]
[1744739822863,0.772,1614.9,1614.7,6.19277]
[1744739823100,0.772,1614.9,1614.6,7.981889]
[1744739823408,6.19322,1614.7,1614.4,12.38832]
[1744739823572,6.19322,1614.7,1614.4,6.19411]
[1744739824099,12.38669,1614.7,1614.4,0.55]
[1744739824409,12.38646,1614.7,1614.4,6.7442]
[1744739824612,6.19322,1614.7,1614.4,6.74411]
[1744739824765,6.19279,1614.8,1614.4,0.55]
[1744739824959,6.19279,1614.8,1614.5,6.19371]
[1744739825265,6.60766482,1614.8,1614.3,6.19451]
[1744739825599,6.19351,1614.6,1614.3,12.38904]
[1744739825801,12.38692,1614.7,1614.4,6.19405]
[1744739825962,6.19274,1614.8,1614.5,6.1937]
[1744739826394,6.96443,1614.9,1614.6,6.19337]
[1744739826593,6.96454,1614.9,1614.6,6.19337]
[1744739826789,13.15718,1614.9,1614.5,12.3876]
[1744739827111,13.15718,1614.9,1614.5,13.70754]
[1744739827112,6.19273,1614.8,1614.5,13.70754]
[1744739827290,6.19273,1614.8,1614.5,7.51374]
[1744739827606,6.96441,1614.9,1614.6,12.38683]
[1744739827905,0.772,1614.9,1614.7,6.19309]
[1744739828469,6.759,1614.9,1614.7,12.38606]
[1744739828826,6.759,1614.9,1614.7,6.19297]
[1744739829027,5.987,1614.9,1614.8,6.19271]
[1744739829230,48.296,1615.0,1614.8,12.38542]
[1744739829429,54.283,1615.0,1614.8,12.38542]
[1744739829732,54.283,1615.0,1614.9,6.74233]
[1744739829929,54.283,1615.0,1614.9,8.035834]
[1744739831817,5.987,1615.0,1614.9,1.293504]
[1744739831998,5.987,1615.0,1614.8,12.38509]
[1744739832506,5.987,1615.0,1614.9,6.19233]
[1744739832992,5.987,1615.0,1614.9,6.74233]
[1744739833196,5.987,1615.0,1614.9,8.035815]
[1744739833397,5.987,1615.0,1614.7,12.38612]
[1744739833696,6.7415,1615.0,1614.7,12.38612]
[1744739833900,6.7415,1615.0,1614.8,6.19258]
[1744739834105,5.987,1615.0,1614.9,6.19233]
[1744739834306,5.987,1615.0,1614.9,7.980821]
[1744739835541,0.7602,1615.2,1614.8,6.19271]
[1744739835542,6.95148,1615.2,1614.8,6.19271]
[1744739835715,0.7602,1615.2,1615.0,6.19176]
[1744739836620,6.95151,1615.2,1614.9,6.19224]
[1744739836821,6.95151,1615.2,1614.9,6.19221]
[1744739837063,6.95151,1615.2,1614.8,6.74264]
[1744739837358,6.95151,1615.2,1614.9,6.19224]
[1744739837359,13.14299,1615.2,1614.9,6.19224]
[1744739837506,13.80515892,1615.2,1614.9,6.19224]
[1744739837709,13.80504892,1615.2,1614.9,6.19224]
[1744739838020,13.80506892,1615.2,1614.9,6.19224]
[1744739838217,7.61367892,1615.2,1614.9,12.38447]
[1744739838434,7.61367892,1615.2,1614.9,6.19226]
[1744739838740,12.38339,1615.1,1614.8,6.74261]
[1744739838967,13.76396589,1615.1,1614.8,0.55]
[1744739839168,13.76396589,1615.1,1614.6,6.19331]
[1744739839169,6.95366,1614.9,1614.6,6.19331]
[1744739839307,19.13225,1614.9,1614.5,12.38772]
[1744739839709,19.13225,1614.9,1614.4,6.19414]
[1744739839710,6.7471,1614.9,1614.4,6.19414]
[1744739839963,6.19346,1614.7,1614.3,6.19449]
[1744739840118,6.888686,1614.7,1614.4,6.19425]
[1744739840343,6.888686,1614.7,1614.3,6.19449]
[1744739840344,6.888566,1614.7,1614.3,12.38899]
[1744739840544,6.888566,1614.7,1614.4,6.19423]
[1744739840845,0.695226,1614.7,1614.5,6.19385]
[1744739841246,0.695226,1614.7,1614.5,12.3877]
[1744739841571,6.95158,1614.8,1614.5,12.38761]
[1744739841870,6.95158,1614.8,1614.5,6.19376]
[1744739842373,0.7588,1614.8,1614.6,12.38682]
[1744739842574,0.7588,1614.8,1614.6,6.19335]
[1744739843346,6.95154,1614.8,1614.5,6.19377]
[1744739843678,2.671797,1614.8,1614.6,6.19345]
[1744739844016,2.671797,1614.8,1614.5,6.19376]
[1744739844017,8.864507,1614.8,1614.5,12.38752]
[1744739844333,5.986,1614.9,1614.8,6.19271]
[1744739844533,5.986,1614.9,1614.8,6.74271]
[1744739844762,12.71060892,1615.2,1614.8,6.74271]
[1744739844960,13.46370892,1615.2,1614.9,6.19216]
[1744739845280,1.34637089,1615.1,1614.8,6.74265]
[1744739845435,1.34637089,1615.1,1614.3,0.8274]
[1744739845436,6.07555082,1615.0,1614.3,0.8274]
[1744739845775,6.97683,1614.7,1614.4,6.19412]
[1744739845925,5.857,1614.6,1614.4,12.38825]
[1744739846130,5.857,1614.6,1614.4,6.19411]
[1744739846343,6.52106,1614.6,1614.4,6.19411]
[1744739846767,6.52106,1614.6,1614.5,6.19386]
[1744739846946,5.857,1614.6,1614.5,6.19386]
[1744739849088,11.40332519,1615.0,1614.7,6.19298]
[1744739849089,5.857,1614.8,1614.7,6.19298]
[1744739849588,5.857,1614.8,1614.6,12.38644]
[1744739850458,5.857,1614.8,1614.6,12.38647]
[1744739850647,6.19206,1615.0,1614.7,0.55]
[1744739850852,5.857,1614.9,1614.7,12.38603]
[1744739851053,5.857,1614.9,1614.7,6.19299]
[1744739852199,5.857,1614.9,1614.6,6.19335]
[1744739852355,6.51916892,1615.2,1615.0,6.19195]
[1744739852559,6.51916892,1615.2,1615.1,6.19156]
[1744739853291,5.857,1615.2,1615.1,6.74156]
[1744739853998,5.857,1615.2,1615.1,7.49326]
[1744739854202,4.1322151,1615.3,1615.2,6.19118]
[1744739854379,4.1322151,1615.3,1615.2,6.74118]
[1744739854578,4.1322151,1615.3,1615.2,9.74118]
[1744739854792,4.1322151,1615.5,1615.4,6.74041]
[1744739855155,4.1322151,1615.5,1615.4,6.19041]
[1744739856879,4.1322151,1615.5,1615.4,6.80230997]
[1744739857090,4.1322151,1615.5,1615.4,7.5622078]
[1744739857281,4.1322151,1615.5,1615.4,7.50031]
[1744739857478,0.55,1615.8,1615.4,12.94745909]
[1744739857698,0.55,1615.8,1615.7,10.49916]
[1744739860266,0.55,1615.8,1615.7,9.94916]
[1744739860672,0.55,1615.8,1615.7,10.49916]
[1744739860907,0.55,1615.8,1615.7,10.56104441]
[1744739861204,0.55,1615.8,1615.7,10.49916]
[1744739861909,0.55,1615.8,1615.7,10.56104441]
[1744739862104,0.55,1615.8,1615.7,9.73926]
[1744739863312,0.55,1615.8,1615.7,9.80114443]
[1744739863499,0.55,1615.8,1615.7,11.40020487]
[1744739864583,0.55,1615.8,1615.7,11.33832044]
[1744739865616,0.55,1615.8,1615.7,9.73926]
[1744739866418,1.3049,1615.8,1615.5,6.18998]
[1744739866795,7.49392,1615.8,1615.5,6.18998]
[1744739866992,6.18937,1615.7,1615.4,6.19032]
[1744739867210,6.18937,1615.7,1615.3,6.19065]
[1744739867521,6.18937,1615.7,1615.4,6.19041]
[1744739868008,13.747131,1615.7,1615.4,6.19041]
[1744739868621,7.557691,1615.7,1615.4,6.19041]
[1744739869117,13.747101,1615.7,1615.4,6.19041]
[1744739869321,6.19005,1615.5,1615.2,12.93216]
[1744739869638,0.7737,1615.5,1615.4,6.19041]
[1744739869792,5.854,1615.6,1615.5,6.19003]
[1744739870719,5.854,1615.6,1615.5,6.74003]
[1744739871587,0.55,1615.8,1615.7,6.18926]
[1744739871924,6.18938,1615.7,1615.5,0.55]
[1744739872123,0.7669,1615.7,1615.5,6.18984]
[1744739872292,0.7669,1615.7,1615.5,12.37975]
[1744739872487,0.7669,1615.7,1615.5,6.18984]
[1744739872713,0.7669,1615.7,1615.6,6.18965]
[1744739873093,0.7669,1615.7,1615.5,6.18984]
[1744739874426,0.7669,1615.7,1615.5,12.37976]
[1744739874723,6.73901,1615.8,1615.5,12.37976]
[1744739874910,12.92805,1615.8,1615.5,6.18984]
[1744739875112,12.92805,1615.8,1615.4,12.38062]
[1744739875319,6.73901,1615.8,1615.5,12.37966]
[1744739875522,6.73901,1615.8,1615.7,6.18926]
[1744739875523,0.55,1615.8,1615.7,6.18926]
[1744739875930,0.55,1615.8,1615.7,6.73926]
[1744739878101,6.23684,1616.4,1615.7,6.73926]
[1744739878102,0.05,1616.4,1616.3,6.73697]
[1744739878995,0.05,1616.4,1616.2,6.18716]
[1744739879699,0.05,1616.4,1616.2,0.55]
[1744739879901,6.936673,1616.4,1616.1,6.18763]
[1744739880105,6.936673,1616.4,1616.2,6.18731]
[1744739880106,0.749933,1616.4,1616.2,6.18731]
[1744739880627,13.123453,1616.4,1616.1,6.18758]
[1744739881021,6.18698,1616.3,1616.0,12.376]
[1744739881222,6.99458,1616.2,1616.0,0.55]
[1744739881433,0.8072,1616.2,1615.9,12.37671]
[1744739882041,7.316033,1616.4,1616.1,6.18738]
[1744739882238,7.316033,1616.4,1616.1,12.3749]
[1744739882438,6.6161,1616.4,1616.2,6.18698]
[1744739882742,0.8411,1616.4,1616.3,6.18697]
[1744739882941,0.8411,1616.4,1616.3,6.79883339]
[1744739882942,0.05,1616.4,1616.3,6.79883339]
[1744739883236,0.05,1616.4,1616.3,6.73697]
[1744739883797,0.05,1616.4,1616.2,6.18698]
[1744739884124,0.05,1616.4,1616.2,12.43608391]
[1744739884292,0.05,1616.4,1616.2,12.37422]
[1744739884497,0.05,1616.4,1616.2,6.18698]
[1744739884724,0.05,1616.4,1616.3,6.18697]
[1744739885110,0.05,1616.4,1616.1,13.15446]
[1744739885307,0.8182,1616.4,1616.1,13.15446]
[1744739885609,0.8182,1616.4,1616.1,6.96684]
[1744739885837,0.8182,1616.4,1616.2,6.18731]
[1744739886135,0.8182,1616.4,1616.3,6.18697]
[1744739886324,0.8182,1616.4,1616.2,12.37446]
[1744739886534,0.8182,1616.4,1616.2,12.37443]
[1744739886725,0.8182,1616.4,1616.2,6.18721]
[1744739887438,0.8182,1616.4,1616.2,12.37443]
[1744739887736,0.8182,1616.4,1616.2,6.18721]
[1744739888294,2.096144,1616.4,1616.1,6.18764]
[1744739888640,14.469714,1616.4,1616.1,6.1876]
[1744739888836,12.37412,1616.3,1616.0,0.55]
[1744739889069,6.18698,1616.3,1616.0,6.73799]
[1744739889226,12.37412,1616.3,1616.0,6.73799]
[1744739889407,6.18698,1616.3,1616.0,6.73799]
[1744739889730,6.18738,1616.2,1615.9,12.37681]
[1744739890033,7.6339594,1616.3,1616.0,6.18808]
[1744739890742,1.4469794,1616.3,1615.9,6.18839]
[1744739891030,6.1875,1616.2,1615.9,6.18839]
[1744739891202,12.37502,1616.2,1615.9,6.18839]
[1744739891401,6.18776,1616.1,1615.9,0.55]
[1744739891596,0.7691,1616.1,1615.9,0.55]
[1744739891797,0.7691,1616.1,1615.9,6.73838]
[1744739892053,0.7902,1616.3,1616.1,6.18771]
[1744739892351,0.7902,1616.3,1616.1,6.18761]
[1744739892551,6.2366,1616.4,1616.1,12.37522]
[1744739893071,0.05,1616.4,1616.3,6.73697]
[1744739893871,0.05,1616.4,1616.3,6.79883213]
[1744739894158,0.05,1616.4,1616.3,8.65428521]
[1744739894367,0.05,1616.4,1616.3,8.71614595]
[1744739895631,0.05,1616.4,1616.3,6.73697]
[1744739896520,0.05,1616.4,1616.3,6.79883077]
[1744739897266,0.05,1616.4,1616.3,6.73697]
[1744739897763,0.05,1616.4,1616.3,6.79883078]
[1744739897918,0.05,1616.4,1616.3,7.56303078]
[1744739898121,0.05,1616.4,1616.3,9.55676586]
[1744739898554,0.05,1616.4,1616.3,17.79159153]
[1744739898750,0.05,1616.4,1616.3,12.49490508]
[1744739899925,1e-05,1616.4,1616.3,12.49490508]
[1744739901486,1e-05,1616.4,1616.3,9.49490508]
[1744739901686,1e-05,1616.4,1616.3,8.18070508]
[1744739901982,1e-05,1616.4,1616.3,8.73070508]
[1744739902679,1e-05,1616.4,1616.3,8.79256325]
[1744739903287,1e-05,1616.4,1616.3,13.26875672]
[1744739903470,1e-05,1616.4,1616.3,13.20689855]
[1744739903856,1e-05,1616.4,1616.3,14.02379855]
[1744739905353,1e-05,1616.4,1616.3,17.02379855]
[1744739911784,1e-05,1616.4,1616.3,13.20689855]
[1744739911975,1e-05,1616.4,1616.3,6.73697]
[1744739913410,1e-05,1616.4,1616.3,6.79882737]
[1744739913706,1e-05,1616.4,1616.3,6.73697]
[1744739914616,1e-05,1616.4,1616.1,6.18761]
[1744739914769,0.8044,1616.3,1616.1,6.18761]
[1744739914969,7.690584,1616.3,1616.0,6.188]
[1744739915195,13.877884,1616.3,1616.0,6.188]
[1744739915359,19.737884,1616.3,1615.9,6.18838]
[1744739915564,6.18738,1616.2,1615.9,6.18838]
[1744739916671,6.18738,1616.2,1615.8,6.18878]
[1744739916672,12.37488,1616.2,1615.8,12.37756]
[1744739916861,14.3488984,1616.2,1615.9,6.18848]
[1744739917061,0.8066,1616.1,1615.6,6.18938]
[1744739917305,0.8066,1616.1,1615.5,5.25949347]
[1744739917306,6.18824,1616.0,1615.7,6.18903]
[1744739917468,6.99444,1616.1,1615.8,6.18875]
[1744739917663,6.99444,1616.1,1615.8,12.37766]
[1744739917664,2.12479,1616.1,1615.8,12.37766]
[1744739917869,8.31256,1616.1,1615.8,6.18876]
[1744739918095,2.12479,1616.1,1615.8,6.25064141]
[1744739918306,2.12479,1616.1,1615.9,6.18848]
[1744739918502,2.12479,1616.1,1615.8,6.25064141]
[1744739918503,8.31256,1616.1,1615.8,6.18876]
[1744739918809,7.019406,1616.0,1615.7,0.55]
[1744739919392,0.7685,1615.8,1615.7,0.55]
[1744739920012,0.7685,1615.8,1615.7,6.73926]
[1744739920216,0.7685,1616.0,1615.8,6.18876]
[1744739920915,6.97704,1616.4,1616.1,6.18745]
[1744739921115,15.676173,1616.4,1616.1,6.18745]
[1744739921422,0.79041,1616.4,1616.3,6.18697]
[1744739921702,0.79041,1616.4,1616.2,6.18719]
[1744739922399,6.187,1616.3,1616.1,0.55]
[1744739922767,6.9771,1616.4,1616.1,6.73773]
[1744739922979,0.79041,1616.4,1616.1,6.79946039]
[1744739923163,6.97711,1616.4,1616.1,6.73759]
[1744739923394,6.18707,1616.3,1616.1,0.55]
[1744739923699,0.79041,1616.4,1616.0,6.18804]
[1744739923700,6.9771,1616.4,1616.0,6.18801]
[1744739923872,6.18697,1616.3,1616.0,6.24988182]
[1744739924198,8.26081,1616.4,1616.0,6.24989182]
[1744739924199,6.9771,1616.4,1616.0,6.24989182]
[1744739924501,6.9771,1616.4,1616.0,12.37602]
[1744739924701,6.18698,1616.3,1616.0,12.37602]
[1744739925863,0.79041,1616.4,1616.1,12.37531]
[1744739926077,0.79041,1616.4,1616.2,6.1871]
[1744739926280,1e-05,1616.4,1616.3,6.79883705]
[1744739926479,1e-05,1616.4,1616.3,6.73697]
[1744739927479,1e-05,1616.4,1616.3,0.55]
[1744739927870,1e-05,1616.4,1616.3,6.73697]
[1744739929109,1e-05,1616.4,1616.3,6.79883201]
[1744739929502,1e-05,1616.4,1616.3,6.73697]
[1744739929704,1e-05,1616.4,1616.3,0.55]
[1744739931085,6.1866,1616.4,1616.1,12.37522]
[1744739931806,6.9669,1616.3,1616.1,0.55]
[1744739932008,6.18735,1616.2,1615.7,6.18914]
[1744739932308,6.18735,1616.2,1615.5,6.18993]
[1744739932309,6.18852,1615.9,1615.5,6.18993]
[1744739932507,12.37717,1615.9,1615.6,6.18952]
[1744739932806,12.37717,1615.9,1615.5,6.18989]
[1744739932807,6.18852,1615.9,1615.5,6.18989]
[1744739933010,0.75,1616.0,1615.8,6.18855]
[1744739933307,6.5096,1616.1,1615.9,6.18825]
[1744739933513,12.69733,1616.1,1615.8,6.1888]
[1744739933719,12.69733,1616.1,1615.8,6.18874]
[1744739934311,18.88523,1616.1,1615.8,6.18874]
[1744739934505,12.69733,1616.1,1615.8,6.18874]
[1744739934711,12.69733,1616.1,1615.8,12.37749]
[1744739934914,12.69733,1616.1,1615.8,12.37751]
[1744739935208,18.88527,1616.1,1615.8,6.18874]
[1744739935394,18.88527,1616.1,1615.9,6.18826]
[1744739935395,2.674079,1616.1,1615.9,6.18826]
[1744739935606,0.7856,1616.1,1615.9,6.18826]
[1744739936215,0.7856,1616.1,1615.8,12.37762]
[1744739936508,0.7856,1616.1,1615.9,6.25009952]
[1744739936897,0.7856,1616.1,1615.9,6.18822]
[1744739937096,0.7838,1616.3,1616.0,6.18811]
[1744739937410,6.97081,1616.3,1616.0,6.18801]
[1744739937578,14.47375,1616.3,1616.0,6.18801]
[1744739938016,8.28656,1616.3,1616.0,6.18801]
[1744739938186,14.47381,1616.3,1616.0,6.18801]
[1744739938381,8.28656,1616.3,1616.0,6.18801]
[1744739938599,8.28656,1616.3,1616.0,6.188]
[1744739938927,8.28656,1616.3,1615.9,6.95574]
[1744739939221,12.37502,1616.2,1615.9,6.95567]
[1744739939385,12.37502,1616.2,1615.9,6.18837]
[1744739940024,6.18747,1616.2,1615.9,6.18837]
[1744739940521,8.28656,1616.3,1615.9,6.25024609]
[1744739940721,14.47371,1616.3,1616.0,6.18799]
[1744739941023,12.37507,1616.2,1615.9,6.18836]
[1744739941322,6.1875,1616.2,1615.9,6.18836]
[1744739941723,13.822451,1616.2,1615.9,6.18836]
[1744739942020,1.447411,1616.2,1615.9,12.37672]
[1744739942220,13.158,1616.3,1615.9,12.37672]
[1744739942516,6.18737,1616.2,1615.9,6.18836]
[1744739942823,12.37493,1616.2,1615.9,6.18836]
[1744739943130,6.18781,1616.1,1615.9,0.55]
[1744739943419,6.18737,1616.2,1615.9,6.73847]
[1744739943624,13.15807,1616.3,1616.0,6.18807]
[1744739943823,14.473878,1616.3,1615.9,12.92673]
[1744739943993,6.18736,1616.2,1615.9,12.92674]
[1744739944197,6.18736,1616.2,1615.9,6.73836]
[1744739944994,12.37495,1616.2,1615.9,6.73836]
[1744739945287,8.286608,1616.3,1615.9,6.80023616]
[1744739945493,14.473818,1616.3,1616.0,6.18811]
[1744739945693,8.286608,1616.3,1615.9,0.55]
[1744739945917,14.473928,1616.3,1615.9,6.73832]
[1744739946426,6.1874,1616.2,1615.9,6.73832]
[1744739947193,12.37488,1616.2,1615.9,6.73832]
[1744739947513,6.1874,1616.2,1615.9,12.92671]
[1744739947934,14.473818,1616.3,1615.9,6.73832]
[1744739948094,6.18735,1616.2,1615.9,6.73832]
[1744739948403,6.18735,1616.2,1615.9,12.9267]
[1744739948728,12.37487,1616.2,1615.9,6.73832]
[1744739949021,6.18735,1616.2,1615.9,6.73832]
[1744739949733,6.18735,1616.2,1615.9,12.9267]
[1744739951830,6.18735,1616.2,1616.0,6.1881]
[1744739952428,6.5078,1616.3,1616.0,6.1881]
[1744739952638,6.18671,1616.4,1616.1,6.73752]
[1744739952926,6.18706,1616.3,1616.1,0.55]
[1744739954601,12.37417,1616.3,1616.1,0.55]
[1744739955151,18.09748,1616.4,1616.1,0.55]
[1744739955348,18.09748,1616.4,1616.1,6.73773]
[1744739955511,18.09748,1616.4,1616.1,12.98722865]
[1744739955512,11.91071,1616.4,1616.1,12.98722865]
[1744739955825,11.91071,1616.4,1616.1,12.92536]
[1744739956329,11.91071,1616.4,1616.1,6.73763]
[1744739956522,18.09745,1616.4,1616.1,6.73763]
[1744739956725,11.91071,1616.4,1616.1,12.92526]
[1744739957335,5.72401,1616.4,1616.1,6.73763]
[1744739957505,1e-05,1616.4,1616.3,7.55957]
[1744739959141,1e-05,1616.4,1616.3,7.62142839]
[1744739960298,1e-05,1616.4,1616.3,0.55]
[1744739960506,1e-05,1616.4,1616.3,6.73697]
[1744739960708,1e-05,1616.4,1616.3,6.79883148]
[1744739961741,1e-05,1616.4,1616.3,8.09742963]
[1744739963302,1e-05,1616.4,1616.3,8.03556815]
[1744739963529,1e-05,1616.4,1616.3,6.73697]
[1744739963737,1e-05,1616.4,1616.3,6.79882846]
[1744739965139,1e-05,1616.4,1616.3,6.73697]